[Event "Titled Tuesday Blitz January 17 Early 2023"]
[White "Zampronha, Wladimir Camilo"]
[Black "Ortega Ruiz, Jose Miguel"]
[WhiteFideId "2103087"]
[BlackFideId "2209713"]
[WhiteElo "2176"]
[BlackElo "2351"]
[Result "1-0"]
[Round "02"]
[TimeControl "180+2"]
[Date "2023.01.17"]
[WhiteClock "0:00:31"]
[BlackClock "0:00:13"]

1. e4 {[%clk 0:03:00]}  c6 {[%clk 0:03:00]} 2. d4 {[%clk 0:03:00]}  d5 {[%clk 0:02:49]} 3. e5 {[%clk 0:03:00]}  Bf5 {[%clk 0:02:48]} 4. Nf3 {[%clk 0:03:01]}  h5 {[%clk 0:02:48]} 5. Be2 {[%clk 0:03:00]}  e6 {[%clk 0:02:48]} 6. O-O {[%clk 0:03:00]}  Be7 {[%clk 0:02:49]} 7. c4 {[%clk 0:03:00]}  h4 {[%clk 0:02:48]} 8. h3 {[%clk 0:02:59]}  Nd7 {[%clk 0:02:47]} 9. Nc3 {[%clk 0:03:00]}  Nh6 {[%clk 0:02:47]} 10. cxd5 {[%clk 0:02:53]}  exd5 {[%clk 0:02:43]} 11. Bd3 {[%clk 0:02:48]}  Be6 {[%clk 0:02:42]} 12. Qc2 {[%clk 0:02:38]}  a5 {[%clk 0:02:38]} 13. Re1 {[%clk 0:02:32]}  g5 {[%clk 0:02:38]} 14. Bd2 {[%clk 0:02:12]}  g4 {[%clk 0:02:37]} 15. hxg4 {[%clk 0:02:12]}  Nxg4 {[%clk 0:02:37]} 16. Bf5 {[%clk 0:02:05]}  Nf8 {[%clk 0:02:35]} 17. Bxe6 {[%clk 0:02:01]}  fxe6 {[%clk 0:02:35]} 18. Nh2 {[%clk 0:01:50]}  Nxh2 {[%clk 0:02:29]} 19. Kxh2 {[%clk 0:01:51]}  Qb6 {[%clk 0:02:29]} 20. Be3 {[%clk 0:01:46]}  O-O-O {[%clk 0:02:27]} 21. Rac1 {[%clk 0:01:44]}  Kb8 {[%clk 0:02:26]} 22. Na4 {[%clk 0:01:44]}  Qb4 {[%clk 0:02:25]} 23. a3 {[%clk 0:01:42]}  Qb5 {[%clk 0:02:24]} 24. b4 {[%clk 0:01:36]}  axb4 {[%clk 0:02:23]} 25. axb4 {[%clk 0:01:36]}  Bxb4 {[%clk 0:02:24]} 26. Rb1 {[%clk 0:01:33]}  Qa5 {[%clk 0:02:19]} 27. Nc5 {[%clk 0:01:29]}  Bxc5 {[%clk 0:02:16]} 28. dxc5 {[%clk 0:01:28]}  Nd7 {[%clk 0:02:16]} 29. Qb2 {[%clk 0:01:25]}  Qc7 {[%clk 0:01:35]} 30. Bd4 {[%clk 0:01:16]}  Kc8 {[%clk 0:01:30]} 31. Ra1 {[%clk 0:01:15]}  Nb8 {[%clk 0:01:31]} 32. Ra8 {[%clk 0:01:14]}  Kd7 {[%clk 0:01:29]} 33. Ra7 {[%clk 0:01:12]}  Kc8 {[%clk 0:01:26]} 34. Rb1 {[%clk 0:01:13]}  Na6 {[%clk 0:01:22]} 35. Rxb7 {[%clk 0:01:11]}  Kd7 {[%clk 0:01:17]} 36. Rxc7+ {[%clk 0:01:10]}  Nxc7 {[%clk 0:01:18]} 37. Qd2 {[%clk 0:01:07]}  Rhf8 {[%clk 0:01:11]} 38. Rb7 {[%clk 0:01:07]}  Kc8 {[%clk 0:01:10]} 39. Ra7 {[%clk 0:01:08]}  Kd7 {[%clk 0:01:09]} 40. Qa5 {[%clk 0:01:07]}  Rc8 {[%clk 0:01:09]} 41. Be3 {[%clk 0:01:06]}  Rf5 {[%clk 0:01:06]} 42. Kh3 {[%clk 0:01:04]}  Rh5 {[%clk 0:01:03]} 43. f4 {[%clk 0:01:02]}  Rh7 {[%clk 0:01:02]} 44. f5 {[%clk 0:00:59]}  Rg7 {[%clk 0:00:52]} 45. fxe6+ {[%clk 0:00:55]}  Kxe6 {[%clk 0:00:52]} 46. Bg5 {[%clk 0:00:47]}  d4 {[%clk 0:00:36]} 47. Bf6 {[%clk 0:00:47]}  Rh7 {[%clk 0:00:36]} 48. Qb6 {[%clk 0:00:46]}  Nd5 {[%clk 0:00:35]} 49. Rxh7 {[%clk 0:00:40]}  Nxb6 {[%clk 0:00:35]} 50. cxb6 {[%clk 0:00:41]}  c5 {[%clk 0:00:34]} 51. Re7+ {[%clk 0:00:41]}  Kf5 {[%clk 0:00:34]} 52. Rc7 {[%clk 0:00:40]}  Rb8 {[%clk 0:00:29]} 53. Rxc5 {[%clk 0:00:39]}  Rxb6 {[%clk 0:00:30]} 54. Rd5 {[%clk 0:00:39]}  Ke4 {[%clk 0:00:28]} 55. Rd8 {[%clk 0:00:37]}  d3 {[%clk 0:00:23]} 56. Bxh4 {[%clk 0:00:37]}  Rb3 {[%clk 0:00:20]} 57. e6 {[%clk 0:00:35]}  d2+ {[%clk 0:00:20]} 58. Kh2 {[%clk 0:00:35]}  Rd3 {[%clk 0:00:21]} 59. Rxd3 {[%clk 0:00:32]}  Kxd3 {[%clk 0:00:22]} 60. e7 {[%clk 0:00:33]}  d1=Q {[%clk 0:00:23]} 61. e8=Q {[%clk 0:00:33]}  Qg4 {[%clk 0:00:23]} 62. Bg3 {[%clk 0:00:31]}  Qg5 {[%clk 0:00:16]} 63. Qe5 {[%clk 0:00:32]}  Qh6+ {[%clk 0:00:15]} 64. Kg1 {[%clk 0:00:31]}  Qc1+ {[%clk 0:00:14]} 65. Be1 {[%clk 0:00:30]}  Qh6 {[%clk 0:00:12]} 66. Qe7 {[%clk 0:00:30]}  Qb6+ {[%clk 0:00:11]} 67. Kf1 {[%clk 0:00:30]}  Kc2 {[%clk 0:00:08]} 68. Bf2 {[%clk 0:00:30]}  Qb1+ {[%clk 0:00:08]} 69. Qe1 {[%clk 0:00:30]}  Qb5+ {[%clk 0:00:08]} 70. Qe2+ {[%clk 0:00:31]}  Qxe2+ {[%clk 0:00:07]} 71. Kxe2 {[%clk 0:00:32]}  Kc3 {[%clk 0:00:07]} 72. Ke3 {[%clk 0:00:33]}  Kc4 {[%clk 0:00:08]} 73. Ke4 {[%clk 0:00:33]}  Kb5 {[%clk 0:00:08]} 74. Ke5 {[%clk 0:00:34]}  Kc6 {[%clk 0:00:09]} 75. Ke6 {[%clk 0:00:34]}  Kc7 {[%clk 0:00:08]} 76. Ke7 {[%clk 0:00:34]}  Kc6 {[%clk 0:00:09]} 77. g4 {[%clk 0:00:35]}  Kd5 {[%clk 0:00:10]} 78. g5 {[%clk 0:00:35]}  Ke5 {[%clk 0:00:11]} 79. g6 {[%clk 0:00:35]}  Kf5 {[%clk 0:00:12]} 80. Kf7 {[%clk 0:00:35]}  Kg5 {[%clk 0:00:11]} 81. g7 {[%clk 0:00:35]}  Kh6 {[%clk 0:00:12]} 82. g8=Q {[%clk 0:00:33]}  Kh5 {[%clk 0:00:13]} 83. Qg3 {[%clk 0:00:33]}  Kh6 {[%clk 0:00:13]} 84. Qg6# {[%clk 0:00:31]} 1-0


[Site "https://www.chess.com"]

[Event "Titled Tuesday Blitz January 17 Early 2023"]
[White "Kuznetsov, Mikhail"]
[Black "Bashirli, Saadat"]
[WhiteFideId "4117190"]
[BlackFideId "13429990"]
[WhiteElo "2050"]
[BlackElo "1571"]
[Result "1-0"]
[Round "02"]
[TimeControl "180+2"]
[Date "2023.01.17"]
[WhiteClock "0:00:51"]
[BlackClock "0:00:46"]

1. Nf3 {[%clk 0:02:58]}  d5 {[%clk 0:02:59]} 2. g3 {[%clk 0:02:58]}  Nf6 {[%clk 0:02:58]} 3. Bg2 {[%clk 0:02:58]}  Bg4 {[%clk 0:02:58]} 4. Ne5 {[%clk 0:02:57]}  Bf5 {[%clk 0:02:57]} 5. O-O {[%clk 0:02:58]}  e6 {[%clk 0:02:58]} 6. c4 {[%clk 0:02:57]}  c6 {[%clk 0:02:57]} 7. d4 {[%clk 0:02:58]}  Nbd7 {[%clk 0:02:57]} 8. Nc3 {[%clk 0:02:58]}  Bd6 {[%clk 0:02:55]} 9. Bf4 {[%clk 0:02:55]}  Bxe5 {[%clk 0:02:48]} 10. dxe5 {[%clk 0:02:54]}  Nh5 {[%clk 0:02:48]} 11. cxd5 {[%clk 0:02:51]}  exd5 {[%clk 0:02:35]} 12. Bd2 {[%clk 0:02:25]}  Nxe5 {[%clk 0:02:30]} 13. e4 {[%clk 0:02:25]}  Bg6 {[%clk 0:02:18]} 14. exd5 {[%clk 0:02:22]}  cxd5 {[%clk 0:02:16]} 15. Re1 {[%clk 0:02:21]}  Qd6 {[%clk 0:01:55]} 16. Nb5 {[%clk 0:02:12]}  Qe7 {[%clk 0:01:43]} 17. Bb4 {[%clk 0:01:49]}  Qxb4 {[%clk 0:01:27]} 18. Rxe5+ {[%clk 0:01:47]}  Kf8 {[%clk 0:01:28]} 19. Qxd5 {[%clk 0:01:46]}  Nf6 {[%clk 0:01:22]} 20. Qxb7 {[%clk 0:01:44]}  Rd8 {[%clk 0:01:13]} 21. Rae1 {[%clk 0:01:26]}  Nd7 {[%clk 0:01:04]} 22. Re8+ {[%clk 0:00:57]}  Rxe8 {[%clk 0:01:02]} 23. Rxe8+ {[%clk 0:00:58]}  Kxe8 {[%clk 0:01:02]} 24. Nc7+ {[%clk 0:00:58]}  Kd8 {[%clk 0:00:57]} 25. Qxb4 {[%clk 0:00:54]}  Kxc7 {[%clk 0:00:57]} 26. Qa5+ {[%clk 0:00:54]}  Kb8 {[%clk 0:00:53]} 27. Qd5 {[%clk 0:00:52]}  Kc8 {[%clk 0:00:47]} 28. Qb7+ {[%clk 0:00:50]}  Kd8 {[%clk 0:00:46]} 29. Qa8+ {[%clk 0:00:51]} 1-0


[Site "https://www.chess.com"]

[Event "Titled Tuesday Blitz January 17 Early 2023"]
[White "Morales, Yandri"]
[Black "Vagman, Roy"]
[WhiteFideId "30959268"]
[BlackFideId "2828995"]
[WhiteElo "2031"]
[BlackElo "2273"]
[Result "0-1"]
[Round "02"]
[TimeControl "180+2"]
[Date "2023.01.17"]
[WhiteClock "0:00:57"]
[BlackClock "0:01:10"]

1. e4 {[%clk 0:03:00]}  d6 {[%clk 0:02:58]} 2. d4 {[%clk 0:02:57]}  g6 {[%clk 0:02:58]} 3. Nf3 {[%clk 0:02:57]}  Bg7 {[%clk 0:02:58]} 4. c4 {[%clk 0:02:57]}  Nf6 {[%clk 0:02:57]} 5. Nc3 {[%clk 0:02:57]}  O-O {[%clk 0:02:53]} 6. Bd3 {[%clk 0:02:55]}  Nc6 {[%clk 0:02:53]} 7. O-O {[%clk 0:02:55]}  e5 {[%clk 0:02:51]} 8. Bc2 {[%clk 0:02:50]}  Bg4 {[%clk 0:02:45]} 9. dxe5 {[%clk 0:02:12]}  Nxe5 {[%clk 0:02:43]} 10. Bd3 {[%clk 0:02:12]}  Nxf3+ {[%clk 0:02:29]} 11. gxf3 {[%clk 0:02:13]}  Bh3 {[%clk 0:02:29]} 12. Re1 {[%clk 0:02:13]}  Nh5 {[%clk 0:02:27]} 13. Bf1 {[%clk 0:02:06]}  Qh4 {[%clk 0:02:12]} 14. Nd5 {[%clk 0:01:50]}  Bxf1 {[%clk 0:02:05]} 15. Rxf1 {[%clk 0:01:48]}  Be5 {[%clk 0:02:03]} 16. f4 {[%clk 0:01:33]}  Nxf4 {[%clk 0:01:53]} 17. Nxf4 {[%clk 0:01:27]}  Bxf4 {[%clk 0:01:54]} 18. Bxf4 {[%clk 0:01:24]}  Qxf4 {[%clk 0:01:54]} 19. Qd5 {[%clk 0:01:21]}  Rae8 {[%clk 0:01:52]} 20. Rfe1 {[%clk 0:01:19]}  Re5 {[%clk 0:01:41]} 21. Qd3 {[%clk 0:01:19]}  Rg5+ {[%clk 0:01:39]} 22. Kh1 {[%clk 0:01:16]}  Qxf2 {[%clk 0:01:23]} 23. Re2 {[%clk 0:01:16]}  Qf4 {[%clk 0:01:19]} 24. Re3 {[%clk 0:01:09]}  Rh5 {[%clk 0:01:18]} 25. Rg3 {[%clk 0:01:07]}  Re8 {[%clk 0:01:12]} 26. Re1 {[%clk 0:01:01]}  Qf2 {[%clk 0:01:10]} 27. Re2 {[%clk 0:00:57]}  Rxh2# {[%clk 0:01:10]} 0-1


[Site "https://www.chess.com"]

[Event "Titled Tuesday Blitz January 17 Early 2023"]
[White "Samaganova, Aleksandra"]
[Black "Ozates, Tuna"]
[WhiteFideId "13800221"]
[BlackFideId "6354521"]
[WhiteElo "1856"]
[BlackElo "2251"]
[Result "0-1"]
[Round "02"]
[TimeControl "180+2"]
[Date "2023.01.17"]
[WhiteClock "0:00:52"]
[BlackClock "0:01:36"]

1. c4 {[%clk 0:03:00]}  g6 {[%clk 0:02:53]} 2. Nc3 {[%clk 0:03:00]}  Bg7 {[%clk 0:02:49]} 3. g3 {[%clk 0:02:57]}  c5 {[%clk 0:02:49]} 4. Bg2 {[%clk 0:02:57]}  Nc6 {[%clk 0:02:39]} 5. e3 {[%clk 0:02:57]}  d6 {[%clk 0:02:37]} 6. Nge2 {[%clk 0:02:56]}  e5 {[%clk 0:02:38]} 7. O-O {[%clk 0:02:55]}  Nge7 {[%clk 0:02:36]} 8. h3 {[%clk 0:02:53]}  O-O {[%clk 0:02:36]} 9. a3 {[%clk 0:02:52]}  Be6 {[%clk 0:02:37]} 10. Nd5 {[%clk 0:02:52]}  Rb8 {[%clk 0:02:35]} 11. Nec3 {[%clk 0:02:47]}  a6 {[%clk 0:02:35]} 12. Rb1 {[%clk 0:02:31]}  b5 {[%clk 0:02:33]} 13. Nxe7+ {[%clk 0:02:29]}  Nxe7 {[%clk 0:02:32]} 14. cxb5 {[%clk 0:02:30]}  axb5 {[%clk 0:02:33]} 15. b4 {[%clk 0:02:30]}  c4 {[%clk 0:02:31]} 16. a4 {[%clk 0:02:01]}  bxa4 {[%clk 0:02:28]} 17. Qxa4 {[%clk 0:01:56]}  d5 {[%clk 0:02:28]} 18. b5 {[%clk 0:01:47]}  f5 {[%clk 0:02:27]} 19. Ba3 {[%clk 0:01:40]}  Rf7 {[%clk 0:02:23]} 20. Qa6 {[%clk 0:01:25]}  Rb6 {[%clk 0:02:20]} 21. Qa5 {[%clk 0:01:11]}  Rb8 {[%clk 0:01:39]} 22. Bc5 {[%clk 0:00:52]}  Qxa5 {[%clk 0:01:36]} 0-1


[Site "https://www.chess.com"]

[Event "Titled Tuesday Blitz January 17 Early 2023"]
[White "Myshakov, Fyodor"]
[Black "Martin, Lewis"]
[WhiteFideId "14111284"]
[BlackFideId "410551"]
[WhiteElo "2292"]
[BlackElo "2135"]
[Result "1-0"]
[Round "02"]
[TimeControl "180+2"]
[Date "2023.01.17"]
[WhiteClock "0:00:17"]
[BlackClock "0:00:04"]

1. c4 {[%clk 0:02:59]}  Nf6 {[%clk 0:02:58]} 2. Nc3 {[%clk 0:02:58]}  c6 {[%clk 0:02:43]} 3. Nf3 {[%clk 0:02:55]}  d5 {[%clk 0:02:43]} 4. cxd5 {[%clk 0:02:56]}  cxd5 {[%clk 0:02:43]} 5. d4 {[%clk 0:02:57]}  a6 {[%clk 0:02:38]} 6. Bf4 {[%clk 0:02:57]}  Nc6 {[%clk 0:02:37]} 7. e3 {[%clk 0:02:56]}  Bf5 {[%clk 0:02:30]} 8. Ne5 {[%clk 0:02:53]}  e6 {[%clk 0:02:27]} 9. g4 {[%clk 0:02:50]}  Bg6 {[%clk 0:02:25]} 10. h4 {[%clk 0:02:43]}  h5 {[%clk 0:02:10]} 11. Nxg6 {[%clk 0:02:41]}  fxg6 {[%clk 0:02:10]} 12. Bd3 {[%clk 0:02:39]}  Kf7 {[%clk 0:02:07]} 13. gxh5 {[%clk 0:02:03]}  gxh5 {[%clk 0:02:05]} 14. Bg5 {[%clk 0:02:01]}  Bb4 {[%clk 0:02:00]} 15. Rh3 {[%clk 0:01:53]}  e5 {[%clk 0:01:53]} 16. dxe5 {[%clk 0:01:39]}  Nxe5 {[%clk 0:01:53]} 17. Bf5 {[%clk 0:01:35]}  g6 {[%clk 0:01:41]} 18. Bc2 {[%clk 0:01:23]}  Qd7 {[%clk 0:01:26]} 19. Rf3 {[%clk 0:00:59]}  Nxf3+ {[%clk 0:01:19]} 20. Qxf3 {[%clk 0:00:59]}  Qc6 {[%clk 0:00:57]} 21. O-O-O {[%clk 0:00:41]}  Bxc3 {[%clk 0:00:41]} 22. bxc3 {[%clk 0:00:39]}  Rad8 {[%clk 0:00:37]} 23. Rd4 {[%clk 0:00:34]}  Rhf8 {[%clk 0:00:34]} 24. Bxf6 {[%clk 0:00:28]}  Qxf6 {[%clk 0:00:33]} 25. Rf4 {[%clk 0:00:28]}  Kg7 {[%clk 0:00:27]} 26. Rxf6 {[%clk 0:00:27]}  Rxf6 {[%clk 0:00:28]} 27. Qg3 {[%clk 0:00:26]}  Rc8 {[%clk 0:00:24]} 28. Kd2 {[%clk 0:00:25]}  Rfc6 {[%clk 0:00:22]} 29. f4 {[%clk 0:00:25]}  b5 {[%clk 0:00:19]} 30. Bd3 {[%clk 0:00:25]}  Rf6 {[%clk 0:00:12]} 31. Qg5 {[%clk 0:00:25]}  Rd8 {[%clk 0:00:11]} 32. f5 {[%clk 0:00:22]}  Rdf8 {[%clk 0:00:09]} 33. fxg6 {[%clk 0:00:20]}  Rf2+ {[%clk 0:00:09]} 34. Ke1 {[%clk 0:00:18]}  R8f6 {[%clk 0:00:06]} 35. Qxh5 {[%clk 0:00:18]}  Rxa2 {[%clk 0:00:04]} 36. Qh7+ {[%clk 0:00:17]}  Kf8 {[%clk 0:00:04]} 37. g7+ {[%clk 0:00:17]} 1-0


[Site "https://www.chess.com"]

[Event "Titled Tuesday Blitz January 17 Early 2023"]
[White "sabkeIXO"]
[Black "Garrido, Denis"]
[BlackFideId "601217"]
[WhiteElo "2481"]
[BlackElo "2205"]
[Result "1-0"]
[Round "02"]
[TimeControl "180+2"]
[Date "2023.01.17"]
[WhiteClock "0:00:09"]
[BlackClock "0:00:01"]

1. e4 {[%clk 0:03:00]}  e5 {[%clk 0:02:59]} 2. Nf3 {[%clk 0:03:00]}  Nc6 {[%clk 0:02:59]} 3. d4 {[%clk 0:03:00]}  exd4 {[%clk 0:03:00]} 4. Bc4 {[%clk 0:03:00]}  Nf6 {[%clk 0:03:00]} 5. e5 {[%clk 0:03:00]}  d5 {[%clk 0:03:00]} 6. Bb5 {[%clk 0:03:00]}  Ne4 {[%clk 0:03:00]} 7. Nxd4 {[%clk 0:03:00]}  Bd7 {[%clk 0:03:01]} 8. Bxc6 {[%clk 0:03:00]}  bxc6 {[%clk 0:03:01]} 9. O-O {[%clk 0:03:01]}  Bc5 {[%clk 0:03:02]} 10. f3 {[%clk 0:03:01]}  Ng5 {[%clk 0:03:02]} 11. f4 {[%clk 0:03:01]}  Ne4 {[%clk 0:03:02]} 12. Be3 {[%clk 0:03:01]}  Qb8 {[%clk 0:03:02]} 13. Nd2 {[%clk 0:02:50]}  Qxb2 {[%clk 0:03:01]} 14. N2b3 {[%clk 0:02:33]}  Bb6 {[%clk 0:02:55]} 15. Kh1 {[%clk 0:02:18]}  c5 {[%clk 0:02:42]} 16. Nf3 {[%clk 0:02:15]}  d4 {[%clk 0:02:41]} 17. Bc1 {[%clk 0:01:42]}  Qc3 {[%clk 0:02:40]} 18. Nfd2 {[%clk 0:01:37]}  Bc6 {[%clk 0:02:14]} 19. Qg4 {[%clk 0:01:20]}  O-O {[%clk 0:01:27]} 20. f5 {[%clk 0:01:11]}  Qxc2 {[%clk 0:01:16]} 21. f6 {[%clk 0:01:05]}  g6 {[%clk 0:01:12]} 22. Qh4 {[%clk 0:00:45]}  h5 {[%clk 0:01:04]} 23. Re1 {[%clk 0:00:33]}  Nxd2 {[%clk 0:00:52]} 24. Bxd2 {[%clk 0:00:34]}  Qf5 {[%clk 0:00:46]} 25. Rac1 {[%clk 0:00:23]}  Rfe8 {[%clk 0:00:39]} 26. Nxc5 {[%clk 0:00:21]}  Rxe5 {[%clk 0:00:37]} 27. Rxe5 {[%clk 0:00:20]}  Qxe5 {[%clk 0:00:38]} 28. Nd3 {[%clk 0:00:19]}  Bxg2+ {[%clk 0:00:26]} 29. Kxg2 {[%clk 0:00:19]}  Qe2+ {[%clk 0:00:27]} 30. Qf2 {[%clk 0:00:15]}  Qxd3 {[%clk 0:00:23]} 31. Qf4 {[%clk 0:00:16]}  g5 {[%clk 0:00:20]} 32. Qxg5+ {[%clk 0:00:16]}  Qg6 {[%clk 0:00:21]} 33. h4 {[%clk 0:00:11]}  Re8 {[%clk 0:00:20]} 34. Kf3 {[%clk 0:00:11]}  Qxg5 {[%clk 0:00:19]} 35. Bxg5 {[%clk 0:00:12]}  Kh7 {[%clk 0:00:16]} 36. Rg1 {[%clk 0:00:12]}  d3 {[%clk 0:00:14]} 37. Rg2 {[%clk 0:00:12]}  Re1 {[%clk 0:00:13]} 38. Bd2 {[%clk 0:00:12]}  Ra1 {[%clk 0:00:12]} 39. Rg7+ {[%clk 0:00:12]}  Kh8 {[%clk 0:00:13]} 40. Rxf7 {[%clk 0:00:12]}  Rxa2 {[%clk 0:00:10]} 41. Bh6 {[%clk 0:00:09]}  Rf2+ {[%clk 0:00:07]} 42. Ke4 {[%clk 0:00:08]}  d2 {[%clk 0:00:06]} 43. Bg7+ {[%clk 0:00:08]}  Kh7 {[%clk 0:00:05]} 44. Rd7 {[%clk 0:00:09]}  Re2+ {[%clk 0:00:03]} 45. Kf3 {[%clk 0:00:09]}  Re3+ {[%clk 0:00:03]} 46. Kf4 {[%clk 0:00:09]}  Re8 {[%clk 0:00:01]} 47. f7 {[%clk 0:00:09]} 1-0


[Site "https://www.chess.com"]

[Event "Titled Tuesday Blitz January 17 Early 2023"]
[White "Kabilov, Amin"]
[Black "Sihite, Chelsie Monica Ignesias"]
[WhiteFideId "14700859"]
[BlackFideId "7101198"]
[WhiteElo "2207"]
[BlackElo "2266"]
[Result "1-0"]
[Round "02"]
[TimeControl "180+2"]
[Date "2023.01.17"]
[WhiteClock "0:00:04"]
[BlackClock "0:00:11"]

1. e4 {[%clk 0:03:00]}  e6 {[%clk 0:02:59]} 2. Nf3 {[%clk 0:02:52]}  d5 {[%clk 0:02:58]} 3. Nc3 {[%clk 0:02:49]}  d4 {[%clk 0:02:57]} 4. Ne2 {[%clk 0:02:48]}  c5 {[%clk 0:02:56]} 5. Ng3 {[%clk 0:02:48]}  Nc6 {[%clk 0:02:54]} 6. Bc4 {[%clk 0:02:46]}  Nf6 {[%clk 0:02:51]} 7. O-O {[%clk 0:02:46]}  h5 {[%clk 0:02:49]} 8. h4 {[%clk 0:02:11]}  Be7 {[%clk 0:02:48]} 9. d3 {[%clk 0:02:11]}  Ng4 {[%clk 0:02:45]} 10. Bg5 {[%clk 0:02:05]}  f6 {[%clk 0:02:24]} 11. Bd2 {[%clk 0:02:04]}  g5 {[%clk 0:02:23]} 12. c3 {[%clk 0:01:39]}  a6 {[%clk 0:02:11]} 13. cxd4 {[%clk 0:01:37]}  cxd4 {[%clk 0:02:10]} 14. Rc1 {[%clk 0:01:34]}  Nce5 {[%clk 0:01:56]} 15. Nxe5 {[%clk 0:01:34]}  Nxe5 {[%clk 0:01:56]} 16. hxg5 {[%clk 0:00:57]}  h4 {[%clk 0:01:16]} 17. gxf6 {[%clk 0:00:32]}  hxg3 {[%clk 0:01:12]} 18. fxe7 {[%clk 0:00:31]}  Qxe7 {[%clk 0:00:49]} 19. fxg3 {[%clk 0:00:31]}  Qh7 {[%clk 0:00:47]} 20. Bf4 {[%clk 0:00:29]}  Ng6 {[%clk 0:00:40]} 21. Qd2 {[%clk 0:00:09]}  e5 {[%clk 0:00:38]} 22. Bg5 {[%clk 0:00:09]}  Bg4 {[%clk 0:00:34]} 23. Bf7+ {[%clk 0:00:08]}  Kd7 {[%clk 0:00:33]} 24. Bxg6 {[%clk 0:00:07]}  Qxg6 {[%clk 0:00:33]} 25. Rf6 {[%clk 0:00:07]}  Qh5 {[%clk 0:00:32]} 26. Qc2 {[%clk 0:00:05]}  Rac8 {[%clk 0:00:31]} 27. Qa4+ {[%clk 0:00:05]}  b5 {[%clk 0:00:29]} 28. Qxa6 {[%clk 0:00:05]}  Rxc1+ {[%clk 0:00:29]} 29. Bxc1 {[%clk 0:00:04]}  Qh1+ {[%clk 0:00:28]} 30. Kf2 {[%clk 0:00:05]}  Qxc1 {[%clk 0:00:26]} 31. Qa7+ {[%clk 0:00:05]}  Ke8 {[%clk 0:00:24]} 32. Qb8+ {[%clk 0:00:05]}  Ke7 {[%clk 0:00:25]} 33. Qxe5+ {[%clk 0:00:05]}  Kd8 {[%clk 0:00:24]} 34. Rd6+ {[%clk 0:00:06]}  Bd7 {[%clk 0:00:23]} 35. Qxh8+ {[%clk 0:00:05]}  Kc7 {[%clk 0:00:24]} 36. Qxd4 {[%clk 0:00:05]}  Bc6 {[%clk 0:00:21]} 37. Qe5 {[%clk 0:00:04]}  Qd2+ {[%clk 0:00:21]} 38. Kg1 {[%clk 0:00:05]}  Qd1+ {[%clk 0:00:21]} 39. Kh2 {[%clk 0:00:05]}  Kb7 {[%clk 0:00:20]} 40. Qe7+ {[%clk 0:00:05]}  Kb6 {[%clk 0:00:21]} 41. Qe5 {[%clk 0:00:05]}  Qc1 {[%clk 0:00:18]} 42. Qd4+ {[%clk 0:00:04]}  Kc7 {[%clk 0:00:19]} 43. Qe5 {[%clk 0:00:04]}  Kb6 {[%clk 0:00:18]} 44. Qd5 {[%clk 0:00:04]}  Ka5 {[%clk 0:00:15]} 45. Rxc6 {[%clk 0:00:04]}  Qd1 {[%clk 0:00:12]} 46. b4+ {[%clk 0:00:04]}  Kxb4 {[%clk 0:00:12]} 47. Qb3+ {[%clk 0:00:04]}  Qxb3 {[%clk 0:00:10]} 48. axb3 {[%clk 0:00:04]}  Kxb3 {[%clk 0:00:11]} 49. Rb6 {[%clk 0:00:04]} 1-0


[Site "https://www.chess.com"]

[Event "Titled Tuesday Blitz January 17 Early 2023"]
[White "Garcia Almaguer, Juan Manuel"]
[Black "Cueto, Jonny"]
[WhiteFideId "5110491"]
[BlackFideId "3300145"]
[WhiteElo "2090"]
[BlackElo "2122"]
[Result "1-0"]
[Round "02"]
[TimeControl "180+2"]
[Date "2023.01.17"]
[WhiteClock "0:01:01"]
[BlackClock "0:00:03"]

1. e4 {[%clk 0:03:00]}  e6 {[%clk 0:02:59]} 2. Nf3 {[%clk 0:02:54]}  d5 {[%clk 0:02:40]} 3. Nc3 {[%clk 0:02:50]}  Nf6 {[%clk 0:02:40]} 4. exd5 {[%clk 0:02:46]}  Nxd5 {[%clk 0:02:41]} 5. d4 {[%clk 0:02:42]}  Nc6 {[%clk 0:02:35]} 6. Bd3 {[%clk 0:02:41]}  Be7 {[%clk 0:02:34]} 7. a3 {[%clk 0:02:10]}  O-O {[%clk 0:02:30]} 8. h4 {[%clk 0:02:09]}  h6 {[%clk 0:02:02]} 9. g4 {[%clk 0:02:02]}  e5 {[%clk 0:01:57]} 10. Nxd5 {[%clk 0:01:52]}  Qxd5 {[%clk 0:01:56]} 11. dxe5 {[%clk 0:01:52]}  Rd8 {[%clk 0:01:40]} 12. Rg1 {[%clk 0:01:44]}  Nxe5 {[%clk 0:01:34]} 13. Nxe5 {[%clk 0:01:44]}  Qxe5+ {[%clk 0:01:35]} 14. Be3 {[%clk 0:01:30]}  Bc5 {[%clk 0:01:15]} 15. Bh7+ {[%clk 0:01:26]}  Kxh7 {[%clk 0:01:09]} 16. Qxd8 {[%clk 0:01:25]}  Be6 {[%clk 0:00:18]} 17. Qd3+ {[%clk 0:01:18]}  Kg8 {[%clk 0:00:18]} 18. Qc3 {[%clk 0:01:18]}  Qe4 {[%clk 0:00:10]} 19. Qxc5 {[%clk 0:01:15]}  Re8 {[%clk 0:00:08]} 20. O-O-O {[%clk 0:01:13]}  Bxg4 {[%clk 0:00:07]} 21. Rd4 {[%clk 0:01:10]}  Qe6 {[%clk 0:00:07]} 22. Rdxg4 {[%clk 0:01:09]}  g6 {[%clk 0:00:04]} 23. b3 {[%clk 0:01:05]}  b6 {[%clk 0:00:04]} 24. Qc3 {[%clk 0:01:04]}  c5 {[%clk 0:00:03]} 25. Kb2 {[%clk 0:01:04]}  b5 {[%clk 0:00:03]} 26. Bxh6 {[%clk 0:01:01]}  b4 {[%clk 0:00:03]} 27. Qg7# {[%clk 0:01:01]} 1-0


[Site "https://www.chess.com"]

[Event "Titled Tuesday Blitz January 17 Early 2023"]
[White "Granados Diaz, Maria Esther"]
[Black "Flores Quillas, Diego Saul Rodri"]
[WhiteFideId "6101488"]
[BlackFideId "3822508"]
[WhiteElo "1868"]
[BlackElo "2359"]
[Result "0-1"]
[Round "02"]
[TimeControl "180+2"]
[Date "2023.01.17"]
[WhiteClock "0:00:31"]
[BlackClock "0:01:42"]

1. e4 {[%clk 0:03:00]}  c5 {[%clk 0:03:00]} 2. Nf3 {[%clk 0:02:59]}  d6 {[%clk 0:03:00]} 3. Nc3 {[%clk 0:02:58]}  Nc6 {[%clk 0:02:58]} 4. g3 {[%clk 0:02:21]}  g6 {[%clk 0:02:54]} 5. Bg2 {[%clk 0:02:21]}  Bg7 {[%clk 0:02:54]} 6. O-O {[%clk 0:02:21]}  e6 {[%clk 0:02:54]} 7. Re1 {[%clk 0:02:20]}  Nge7 {[%clk 0:02:54]} 8. d3 {[%clk 0:02:18]}  O-O {[%clk 0:02:53]} 9. Bf4 {[%clk 0:02:13]}  e5 {[%clk 0:02:49]} 10. Bg5 {[%clk 0:02:13]}  h6 {[%clk 0:02:44]} 11. Be3 {[%clk 0:02:09]}  f5 {[%clk 0:02:43]} 12. Nd5 {[%clk 0:01:56]}  Nxd5 {[%clk 0:02:39]} 13. exd5 {[%clk 0:01:56]}  Ne7 {[%clk 0:02:39]} 14. Qd2 {[%clk 0:01:43]}  g5 {[%clk 0:02:38]} 15. Qd1 {[%clk 0:01:25]}  Nxd5 {[%clk 0:02:29]} 16. Bd2 {[%clk 0:01:21]}  Be6 {[%clk 0:02:19]} 17. d4 {[%clk 0:01:14]}  e4 {[%clk 0:02:16]} 18. c4 {[%clk 0:00:31]}  Nc7 {[%clk 0:01:42]} 0-1


[Site "https://www.chess.com"]